Cogmind - Beta 16 @@@ ROGUE MODE // 2025.12.18 @ 17:33:59 Player: Skysub Result: Self-destructed Performance ------------- Evolutions (6) 3000 Regions Visited (10) 2000 Robots Destroyed (124) 620 Value Destroyed (5088) 5088 Prototype IDs (25) 500 Alien Tech Used (0) 0 Bonus (2662) 2662 TOTAL SCORE: 13870 Bonus ------- High Alert Combat Kills 628 Follower Combat Kills 1200 Network Hubs Disabled 200 Registered with UFD 300 Met Optimus in HQ 500 Friendly Fire -166 Cogmind --------- Core Integrity 1042/1150 Matter 47/300 Energy 350/350 System Corruption 2% Temperature Warning (380) Movement Immobile (Siege) Location -4/Factory Parts ------- > --- POWER (2) -------- Quantum Reactor > --- PROPULSION (4) --- Armored Medium Treads Advanced Medium Treads Centrium Heavy Treads > --- UTILITY (9) ------ High-capacity Storage Unit Deep Structural Scanner Targeting Computer Improved Transmission Jammer Centrium Medium Armor Plating Improved Hacking Suite > --- WEAPON (4) ------- KE Penetrator KE Penetrator Railgun Advanced KE Penetrator > --- INVENTORY (20) --- Armored Medium Treads Armored Medium Treads Large Storage Unit Advanced Melee Analysis Suite Microactuators Improved Actuator Array Improved Core Shielding Centrium Medium Armor Plating Faulty Cooled Plasma Rifle Cooled Plasma Rifle Cooled Plasma Rifle Gauss Rifle KE Penetrator Railgun Power Sword Lance DRS Beacon (Ready) Botcube Peak State ------------ > --- POWER ------------ Quantum Reactor Quantum Reactor > --- PROPULSION ------- Armored Medium Treads Advanced Medium Treads Centrium Heavy Treads > --- UTILITY ---------- High-capacity Storage Unit Deep Structural Scanner Targeting Computer Advanced Melee Analysis Suite Improved Transmission Jammer Improved Heavy Armor Plating Centrium Medium Armor Plating Improved Hacking Suite > --- WEAPON ----------- KE Penetrator KE Penetrator Railgun Advanced KE Penetrator > --- INVENTORY -------- Armored Medium Treads Armored Medium Treads Large Storage Unit Advanced Melee Analysis Suite Microactuators Improved Actuator Array Improved Core Shielding Centrium Medium Armor Plating Cooled Plasma Rifle Cooled Plasma Rifle Cooled Plasma Rifle Gauss Rifle KE Penetrator Railgun Power Sword Lance DRS Beacon Botcube [Rating: 127] Favorites ----------- Power Quantum Reactor Engine Ion Engine Power Core Meta Core Reactor Quantum Reactor Propulsion Wheel Treads Armored Medium Treads Wheel Wheel Utility Advanced Melee Analysis Suite Device Advanced Shield Generator Storage Light Humpback Processor Advanced Melee Analysis Suite Hackware Hacking Suite Protection Improved Medium Armor Plating Weapon Coil Gun Energy Gun Subdweller Laser Ballistic Gun Coil Gun Ballistic Cannon Battle Cannon Launcher Grenade Launcher Slashing Weapon Makeshift Sword Piercing Weapon Lance Build | -11 -10 -10 -7 -7 -5 -5 -5 -5 -5 -4 ------- Run | Yrd Mat Sub Rec Scr Fac Ext Cet Arc Hub Fac Slots Evolved 12 | . . . . . 10 . . . . 2 Power 1 | . . . . . 1 . . . . . Propulsion 2 | . . . . . 2 . . . . . Utility 7 | . . . . . 6 . . . . 1 Weapon 2 | . . . . . 1 . . . . 1 Parts Attached 101 | 6 1 9 1 3 42 23 6 2 4 4 Power 14 | 1 . 2 . 1 5 3 2 . . . Engine 5 | 1 . 2 . 1 1 . . . . . Core 6 | . . . . . 3 3 . . . . Reactor 3 | . . . . . 1 . 2 . . . Propulsion 21 | 2 1 2 . 1 5 7 1 . 1 1 Treads 17 | 2 . . . . 5 7 1 . 1 1 Leg . | . . . . . . . . . . . Wheel 4 | . 1 2 . 1 . . . . . . Hover . | . . . . . . . . . . . Flight . | . . . . . . . . . . . Utility 42 | 1 . 2 1 . 21 11 1 1 2 2 Device 18 | . . 1 . . 11 5 . . . 1 Storage 8 | 1 . 1 1 . 2 2 . . . 1 Processor 4 | . . . . . 3 1 . . . . Hackware 2 | . . . . . . 1 . 1 . . Protection 10 | . . . . . 5 2 1 . 2 . Artifact . | . . . . . . . . . . . Weapon 24 | 2 . 3 . 1 11 2 2 1 1 1 Energy Gun 3 | 1 . 1 . . 1 . . . . . Energy Cannon . | . . . . . . . . . . . Ballistic Gun 13 | 1 . . . . 5 2 2 1 1 1 Ballistic Cannon 1 | . . 1 . . . . . . . . Launcher 2 | . . 1 . 1 . . . . . . Special Weapon . | . . . . . . . . . . . Impact Weapon . | . . . . . . . . . . . Slashing Weapon 3 | . . . . . 3 . . . . . Piercing Weapon 2 | . . . . . 2 . . . . . Special Melee Weapon . | . . . . . . . . . . . Unidentified Prototypes 5 | . . . . . 1 1 3 . . . Parts Lost 28 | . . 1 . . 13 8 . . 1 5 Power 6 | . . . . . 3 2 . . . 1 Propulsion 4 | . . 1 . . 2 1 . . . . Utility 14 | . . . . . 5 4 . . 1 4 Weapon 4 | . . . . . 3 1 . . . . Highest Loss Streak 5 | . . 1 . . 3 2 . . 1 5 To Critical Strikes 1 | . . . . . . 1 . . . . Average Backups 12 | 2 5 9 20 9 16 12 12 13 12 16 Power . | . 1 . . . . . . . . . Propulsion 1 | 1 3 2 2 1 1 . 2 2 2 2 Utility 5 | . . 1 7 4 8 6 6 7 6 7 Weapon 5 | . 1 4 9 3 6 6 4 3 4 7 Tool/Special . | . . . . . . . . . . . Unused Backups 54 | . . . 2 23 13 2 2 2 2 8 Power 2 | . . . . 1 1 . . . . . Propulsion 8 | . . . . 5 2 . . 1 . . Utility 19 | . . . 1 9 4 1 . . 1 3 Weapon 25 | . . . 1 8 6 1 2 1 1 5 Tool/Special . | . . . . . . . . . . . Average Slot Usage (%) 79 | . 85 86 85 54 76 88 96 94 90 88 Engine 5 | . 14 14 14 6 2 . . . . . Core 2 | . . . . . 7 6 5 . . . Reactor 2 | . . . . . . 3 5 11 11 10 Treads 10 | . 25 13 . . 12 13 19 17 17 15 Wheel 10 | . 2 14 28 24 1 . . . . . Device 8 | . . 1 . . 19 17 17 17 12 14 Storage 9 | . 14 14 14 13 7 5 5 5 5 5 Processor 4 | . . . . . 4 10 11 11 11 10 Hackware 1 | . . . . . . 3 5 5 5 5 Protection 3 | . . . . . 5 7 5 5 6 5 Energy Gun 4 | . 14 14 14 3 . . . . . . Ballistic Gun 8 | . 14 6 . . 6 15 17 17 15 19 Ballistic Cannon 2 | . . 4 14 3 . . . . . . Launcher 1 | . . 2 . 2 2 . . . . . Piercing Weapon 1 | . . . . . 2 2 . . . 1 Peak Build Rating 127 | 6 6 11 17 30 104 109 110 115 119 127 Average Rating 54 | 4 6 8 15 11 88 95 101 111 113 123 On Entrance 54 | . 6 6 11 17 30 104 90 110 115 110 Avg Prop Armor Cover (%) 12 | . 12 12 . 33 9 . . . 4 4 Naked Turns 21 | . . . . 21 . . . . . . Heaviest Build 125 | 11 11 52 52 60 92 83 90 92 100 125 Greatest Support 137 | 40 40 20 20 28 126 130 134 134 134 137 Greatest Overweight (x) 5 | 1 1 5 2 2 3 . 1 . . 1 Average Overweight (x) 1 | . . 2 2 1 . . . . . . Largest Inventory Capacity 25 | 8 8 20 25 25 25 15 15 15 15 20 Average Capacity 18 | 7 8 14 23 24 21 15 15 15 15 19 Most Carried 25 | 5 7 15 25 25 25 15 15 15 15 20 Average Carried 14 | 2 5 9 21 10 18 14 14 15 14 18 Final Capacity 25 | 8 8 20 25 25 15 15 15 15 15 20 Final Carried 25 | 5 7 15 25 24 14 15 15 15 15 18 Class Distribution -------------------- 48% | Mutant 39% | Scavenger-Tank 8% | Derelict-Mutant Dominant Class ---------------- Mutant | -10/Materials Mutant | -10/Subcaves Mutant | -7/Recycling Mutant | -7/Scraptown Derelict-Mutant | -5/Factory Scavenger-Tank | -5/Extension Scavenger-Tank | -5/Cetus Scavenger-Tank | -5/Archives Scavenger-Tank | -5/Hub_04(d) Scavenger-Tank | -4/Factory Resources | -11 -10 -10 -7 -7 -5 -5 -5 -5 -5 -4 ----------- Run | Yrd Mat Sub Rec Scr Fac Ext Cet Arc Hub Fac Matter Collected 3955 | 203 . 363 53 12 733 1032 206 245 476 632 Remotely 1021 | . . . . . 141 880 . . . . Salvage Created 5798 | 121 . 175 255 . 1164 1596 61 255 1279 892 Parts 272 | 5 . 13 7 . 49 74 3 13 77 31 Haulers Intercepted 1 | . . . . . 1 . . . . . Recyclers Shooed 9 | 1 . . 6 . . . . . . 2 Parts Field Recycled . | . . . . . . . . . . . Retrieved Matter . | . . . . . . . . . . . Parts Self-Destructed 16 | . . 16 . . . . . . . . Prevented . | . . . . . . . . . . . Parts Restored . | . . . . . . . . . . . Kills | -11 -10 -10 -7 -7 -5 -5 -5 -5 -5 -4 ------- Run | Yrd Mat Sub Rec Scr Fac Ext Cet Arc Hub Fac Combat Hostiles Destroyed 84 | . . 8 . . 22 23 1 2 18 10 Melee 8 | . . . . . 8 . . . . . Guns 66 | . . 3 . . 10 23 1 2 18 9 AOE 10 | . . 5 . . 4 . . . . 1 Classes Destroyed 17 | 2 . 3 . . 5 4 . 1 . 2 Worker 10 | . . . . . . 3 . . 4 3 Builder 10 | . . . . . . 1 . . 9 . Tunneler 3 | 2 . . . . . . . . 1 . Hauler 1 | . . . . . 1 . . . . . Recycler 8 | 1 . . 4 . 1 1 . . . 1 Operator 3 | . . . . . . . . 2 1 . Watcher 5 | . . . . . . 3 1 . . 1 Swarmer 20 | . . 5 . . 6 5 . . 4 . Grunt 33 | . . . . . 11 10 . . 8 4 Brawler 1 | . . . . . . . . . . 1 Duelist 1 | . . . . . . . . . . 1 Sentry 11 | . . . . . 3 4 . 2 2 . Hunter 8 | . . . . . 1 2 . . 2 3 Programmer 4 | . . . . . 1 . . . 2 1 Behemoth 2 | . . . . . . 2 . . . . Cetus Guard 1 | . . . . . . . 1 . . . Artisan 1 | . . 1 . . . . . . . . Subdweller 3 | . . 3 . . . . . . . . Best Kill Streak 10 | 3 . 3 3 . 8 5 1 1 10 3 Combat Bots Only 5 | . . 3 . . 5 3 1 1 5 3 Max Kills in Single Turn 5 | 1 . 3 1 . 2 3 1 1 5 3 Gunslinging 1 | . . . . . 1 . . . . 1 Exploded 3 | . . 3 . . 2 . . . . 1 Melee 1 | . . . . . 1 . . . . . Uniques/NPCs Destroyed . | . . . . . . . . . . . Combat | -11 -10 -10 -7 -7 -5 -5 -5 -5 -5 -4 -------- Run | Yrd Mat Sub Rec Scr Fac Ext Cet Arc Hub Fac Hostile Shots Fired 652 | . . 88 . . 166 152 19 23 77 127 Missed 209 | . . 39 . . 36 55 8 8 22 41 Hits 443 | . . 49 . . 130 97 11 15 55 86 Melee 9 | . . . . . . . . . . 9 Projectile 434 | . . 49 . . 130 97 11 15 55 77 Critical Strikes 35 | . . 1 . . 12 9 3 . 3 7 Actively Blocked 1 | . . . . . . 1 . . . . Part Disruptions 2 | . . . . . 1 . . . 1 . Damage Taken 7785 | . 12 582 . . 2781 1848 239 308 764 1251 Core 621 | . 12 197 . . 159 130 . 15 . 108 Absorbed by Shields 1061 | . . . . . 160 148 87 109 237 320 Reduced by Siege Mode 16 | . . . . . . . . . 12 4 Redirected to Shielding 69 | . . . . . 11 58 . . . . Core Remaining (%) 61 | 100 . . . 16 . . . . 69 . Volleys Fired 269 | 8 1 34 14 . 37 73 11 22 35 34 Largest 4 | 2 2 2 2 . 3 3 3 3 3 4 Hottest 136 | 60 60 93 93 . 93 93 96 103 105 136 Shots Fired 722 | 16 2 54 21 . 75 217 35 66 100 136 Gun 685 | 16 2 33 14 . 66 217 35 66 100 136 Cannon 22 | . . 15 7 . . . . . . . Launcher 15 | . . 6 . . 9 . . . . . Special . | . . . . . . . . . . . Kinetic 654 | 8 1 28 7 . 56 217 35 66 100 136 Thermal 53 | 8 1 20 14 . 10 . . . . . Explosive 15 | . . 6 . . 9 . . . . . Electromagnetic . | . . . . . . . . . . . Robot Hit Streak 16 | 5 3 7 6 . 7 14 8 16 16 14 Robot Miss Streak 8 | 2 . 4 3 . 3 8 5 3 3 6 Penetration Max 2 | . . . . . 1 1 1 1 2 2 Secondary Targets 9 | . . . . . 2 3 1 . . 3 Max Gunslinging Chain 1 | . . . . . 1 1 1 . . 1 Shots Hit Robots 476 | 11 2 25 14 . 74 131 19 48 67 85 Core Hits 263 | 4 1 11 4 . 57 69 6 16 53 42 Critical Kills 19 | 1 . 1 . . 1 4 . 1 8 3 Critical Parts Destroyed 9 | . . . . . 1 3 . 1 2 2 Critical Strikes 37 | 1 . 1 . . 8 7 . 5 10 5 Burn 1 | . . . . . 1 . . . . . Destroy 31 | 1 . 1 . . 2 7 . 5 10 5 Sever 2 | . . . . . 2 . . . . . Impale 3 | . . . . . 3 . . . . . Melee Attacks 90 | . . . . . 79 1 . . 9 1 Impact . | . . . . . . . . . . . Slashing 32 | . . . . . 32 . . . . . Piercing 58 | . . . . . 47 1 . . 9 1 Sneak Attacks 2 | . . . . . 2 . . . . . Combat Hostiles . | . . . . . . . . . . . Follow-up Attacks 16 | . . . . . 16 . . . . . Damage Inflicted 14886 | 128 22 552 294 . 2997 3837 479 1187 2607 2783 Guns 12090 | 128 22 329 254 . 1032 3837 479 1187 2211 2611 Cannons 40 | . . . 40 . . . . . . . Explosions 1564 | . . 223 . . 806 . . . 396 139 Melee 1192 | . . . . . 1159 . . . . 33 Ramming . | . . . . . . . . . . . Kinetic 11403 | 82 10 106 40 . 840 3837 479 1187 2211 2611 Thermal 866 | 46 12 223 254 . 192 . . . . 139 Explosive 1029 | . . 223 . . 806 . . . . . Electromagnetic 396 | . . . . . . . . . 396 . Impact . | . . . . . . . . . . . Slashing 665 | . . . . . 665 . . . . . Piercing 527 | . . . . . 494 . . . . 33 Highest Corruption 29 | . . . . . 17 17 17 17 29 2 Average Corruption 14 | . . . . . 4 17 17 17 24 1 Corruption Purged . | . . . . . . . . . . . Corruption Blocked . | . . . . . . . . . . . Effects 150 | . . . . . 16 87 8 8 30 1 Message Errors 33 | . . . . . 3 17 1 1 11 . Matter Fused 33 | . . . . . 6 20 3 2 2 . Heat Flow Errors 15 | . . . . . . 10 . 1 4 . Energy Discharges 16 | . . . . . 1 12 1 . 2 . Parts Rejected 1 | . . . . . . 1 . . . . Parts Fused 1 | . . . . . . 1 . . . . Data Loss (minor) 17 | . . . . . 2 10 1 . 4 . Data Loss (major) 5 | . . . . . . 3 . 1 1 . Misfires 9 | . . . . . 2 3 2 1 . 1 Alerts 7 | . . . . . 2 3 . 1 1 . Misdirections 2 | . . . . . . 2 . . . . Weapon Failures 11 | . . . . . . 5 . 1 5 . Overload Shots . | . . . . . . . . . . . Overflow Damage 147 | . . 1 . . 89 . . . 57 . Projectiles . | . . . . . . . . . . . Explosions 80 | . . 1 . . 22 . . . 57 . Melee 67 | . . . . . 67 . . . . . Knockbacks 1 | . . . 1 . . . . . . . Impact . | . . . . . . . . . . . Kinetic 1 | . . . 1 . . . . . . . Secondary . | . . . . . . . . . . . Self-Inflicted Damage 134 | . . 38 . . . . . . 96 . Shots 2 | . . 1 . . . . . . 1 . Rammed . | . . . . . . . . . . . Targets Rammed . | . . . . . . . . . . . Kicked . | . . . . . . . . . . . Crushed . | . . . . . . . . . . . Highest Temperature 380 | . 6 . 206 . 380 303 . 175 250 368 Average Temperature 87 | . 6 . 71 . 100 75 . 107 116 166 Received Heat Transfer 1914 | . 6 231 . . 697 718 . 30 152 80 Effects 3 | . . . . . 2 . . . . 1 Shutdowns 2 | . . . . . 1 . . . . 1 Interference 1 | . . . . . 1 . . . . . Siege Activations 3 | . . . . . . . . . 2 1 Total Turns 30 | . . . . . . . . . 20 10 Longest Duration 15 | . . . . . . . . . 15 10 Martial Activations . | . . . . . . . . . . . Shielding Activations . | . . . . . . . . . . . Robots Disrupted . | . . . . . . . . . . . Combat Hostiles . | . . . . . . . . . . . Robots Corrupted 1 | . . . . . . . . . 1 . Combat Hostiles . | . . . . . . . . . . . Parts Fried 3 | . . . . . . . . . 3 . Impact Corruptions . | . . . . . . . . . . . Robots Melted . | . . . . . . . . . . . Combat Hostiles . | . . . . . . . . . . . Parts Melted 2 | . . . . . . 2 . . . . Heat Transferred 1270 | 100 25 375 300 . 370 . . . . 100 Parts Sabotaged . | . . . . . . . . . . . Parts Stolen . | . . . . . . . . . . . Parts Stripped . | . . . . . . . . . . . Power Chain Reactions . | . . . . . . . . . . . Alert | -11 -10 -10 -7 -7 -5 -5 -5 -5 -5 -4 ------- Run | Yrd Mat Sub Rec Scr Fac Ext Cet Arc Hub Fac Maximum Alert Level 4 | . . . . . 1 3 2 1 4 2 Low Security (%) 41 | 100 100 . 100 . 66 10 . 18 27 . Level 1 16 | . . . . . 33 5 . 81 39 . Level 2 26 | . . . . . . 36 99 . 19 100 Level 3 14 | . . . . . . 47 . . . . Level 4 1 | . . . . . . . . . 14 . Level 5 . | . . . . . . . . . . . High Security . | . . . . . . . . . . . Max Security . | . . . . . . . . . . . Peak Influence 1132 | 10 . . 100 . 299 807 470 243 1132 664 Initial 547 | . . . . . . 128 440 161 67 547 Average 349 | 1 . . 29 . 153 618 438 209 403 548 Influence Increases 4708 | 15 . 150 220 . 798 1532 103 141 1283 466 Destroy 0b10 Robot/C 2160 | . . 100 . . 440 900 80 80 360 200 Destroy 0b10 Robot/NC 205 | 15 . . 20 . 10 45 5 10 75 25 Destroy Leader 350 | . . 20 . . 82 116 . . 100 32 Allied During Kill 258 | . . . . . 1 250 4 3 . . Successful Hack 181 | . . . 18 . 82 24 . . 34 23 Select Force Hacks 180 | . . . 180 . . . . . . . Disable Machine 615 | . . . . . 30 45 . 30 390 120 Destroy Structure 594 | . . . 2 . 108 92 14 18 294 66 Lose Combat Pursuer 165 | . . 30 . . 45 60 . . 30 . Influence Decreases 4141 | 15 . 150 220 . 536 1008 486 352 357 1017 Entered New Map 1418 | . . . . . . 134 346 242 125 571 Time Decay 2023 | 15 . 150 220 . 406 574 100 90 222 246 Lost Part 270 | . . . . . 130 80 . . 10 50 Lost Ally 280 | . . . . . . 220 40 20 . . Purge Threat 150 | . . . . . . . . . . 150 Squads Dispatched 34 | . 2 . . . 9 9 . . 8 6 Investigation 14 | . 1 . . . 4 6 . . 1 2 Extermination 3 | . . . . . 2 . . . 1 . Reinforcement 13 | . 1 . . . 3 3 . . 3 3 Assault . | . . . . . . . . . . . Garrison 4 | . . . . . . . . . 3 1 Intercept . | . . . . . . . . . . . Searches Triggered . | . . . . . . . . . . . Construction Impeded 6 | . . . . . 1 2 . . 1 2 Haulers Reinforced 1 | . . . . . . . . . . 1 Active Scanning Responses . | . . . . . . . . . . . Cargo Convoy Interrupts . | . . . . . . . . . . . Stealth | -11 -10 -10 -7 -7 -5 -5 -5 -5 -5 -4 --------- Run | Yrd Mat Sub Rec Scr Fac Ext Cet Arc Hub Fac Distress Signals 5 | . . . . . . . 1 . 1 3 Communications Jammed 1 | . . . . . . . . . . 1 Distress Signals 1 | . . . . . . . . . . 1 Times Spotted 164 | . 4 17 . . 33 51 5 9 24 21 Peak Tracking Total 7 | . 3 6 . . 5 6 5 1 5 7 Tactical Retreats 11 | . . 2 . . 5 2 . . 2 . ECM-based Alert Blocks 4 | . . . . . 4 . . . . . Traps | -11 -10 -10 -7 -7 -5 -5 -5 -5 -5 -4 ------- Run | Yrd Mat Sub Rec Scr Fac Ext Cet Arc Hub Fac Traps Triggered 8 | . . 1 . . 4 . . . 2 1 Indirectly . | . . . . . . . . . . . Trap Hack Attempts . | . . . . . . . . . . . Triggered . | . . . . . . . . . . . Disarmed . | . . . . . . . . . . . Reprogrammed . | . . . . . . . . . . . Reused . | . . . . . . . . . . . Traps Extracted . | . . . . . . . . . . . Installed . | . . . . . . . . . . . Triggered . | . . . . . . . . . . . Most Traps Carried 1 | . . . . 1 . . . . . . Machines | -11 -10 -10 -7 -7 -5 -5 -5 -5 -5 -4 ---------- Run | Yrd Mat Sub Rec Scr Fac Ext Cet Arc Hub Fac Machines Disabled 46 | . . 1 . . 2 5 2 2 26 8 Max in Single Turn 19 | . . 1 . . 1 1 1 1 19 3 Garrison Access 1 | . . . . . . . . . . 1 Network Hub 1 | . . . . . . . . . 1 . Energy Cycler 2 | . . . . . . 2 . . . . Machines Repaired . | . . . . . . . . . . . Machines Dismantled . | . . . . . . . . . . . Machines Sabotaged . | . . . . . . . . . . . Overloaded Fab Kills . | . . . . . . . . . . . Hacking | -11 -10 -10 -7 -7 -5 -5 -5 -5 -5 -4 --------- Run | Yrd Mat Sub Rec Scr Fac Ext Cet Arc Hub Fac Machines Accessed 45 | . . 2 11 3 9 10 . . 6 4 Terminals 22 | . . . 5 . 2 8 . . 6 1 Fabricators 2 | . . . . . 1 . . . . 1 Repair Stations 1 | . . . . . 1 . . . . . Recycling Units 13 | . . . 6 . 4 2 . . . 1 Scanalyzers 1 | . . . . . 1 . . . . . Garrison Access 1 | . . . . . . . . . . 1 Total Hacks 149 | . . 5 33 27 22 27 . . 16 19 Successful 92 | . . 5 18 27 11 14 . . 8 9 Failed 57 | . . . 15 . 11 13 . . 8 10 Catastrophic 12 | . . . 1 . 3 3 . . 2 3 Database Lockouts . | . . . . . . . . . . . Manual 70 | . . . 20 . 13 14 1 . 12 10 Terminals 61 | . . . 12 . 4 20 . . 16 9 Fabricators 5 | . . . . . 2 . . . . 3 Repair Stations 2 | . . . . . 2 . . . . . Recycling Units 42 | . . . 21 . 10 7 . . . 4 Scanalyzers 4 | . . . . . 4 . . . . . Garrison Access 3 | . . . . . . . . . . 3 Terminal Hacks 47 | . . 5 1 27 1 4 . . 6 3 Record 24 | . . 4 . 20 . . . . . . Robot Analysis 6 | . . . . 6 . . . . . . Open Door 2 | . . . . . . 2 . . . . Level Access Points 1 | . . . . . . . . . 1 . Terminal Index 3 | . . . 1 . . . . . 1 1 Recycling Unit Index 1 | . . . . . . . . . . 1 Alert Level 2 | . . . . . . 1 . . 1 . Unreport Threat 1 | . . . . . . . . . . 1 Locate Traps 2 | . . . . . 1 . . . 1 . Recall Investigation 1 | . . . . . . 1 . . . . Zone Layout 2 | . . . . . . . . . 2 . Proto ID Catalog 2 | . . 1 . 1 . . . . . . Fabricator Hacks 1 | . . . . . . . . . . 1 Build 1 | . . . . . . . . . . 1 Repair Station Hacks 1 | . . . . . 1 . . . . . Scan Component 1 | . . . . . 1 . . . . . Recycling Unit Hacks 13 | . . . 7 . 1 3 . . . 2 Report Inventory 7 | . . . 3 . 1 2 . . . 1 Retrieve Components 6 | . . . 4 . . 1 . . . 1 Scanalyzer 4 | . . . . . 4 . . . . . Retrieve Study 4 | . . . . . 4 . . . . . Garrison Access Hacks 1 | . . . . . . . . . . 1 Seal Access 1 | . . . . . . . . . . 1 Unauthorized Hacks 25 | . . . 10 . 4 7 . . 2 2 Terminals 14 | . . . 4 . 2 5 . . 2 1 Track 2 | . . . . . 1 1 . . . . Botnet 8 | . . . 1 . 1 3 . . 2 1 Skim 4 | . . . 3 . . 1 . . . . Fabricators 1 | . . . . . 1 . . . . . Liberate 1 | . . . . . 1 . . . . . Repair Stations . | . . . . . . . . . . . Recycling Units 10 | . . . 6 . 1 2 . . . 1 Tunnel 6 | . . . 6 . . . . . . . Fedlink 4 | . . . . . 1 2 . . . 1 Scanalyzers . | . . . . . . . . . . . Garrison Access . | . . . . . . . . . . . Data Cores Recovered 2 | . 1 . . . . 1 . . . . Used . | . . . . . . . . . . . Hacking Detections 33 | . . . 9 . 8 7 . . 6 3 Full Trace Events 9 | . . . 1 . 3 3 . . 1 1 Feedback Events . | . . . . . . . . . . . Feedback Blocked . | . . . . . . . . . . . Robot Schematics Acquired . | . . . . . . . . . . . Robots Built . | . . . . . . . . . . . Authchips . | . . . . . . . . . . . Time . | . . . . . . . . . . . Total Robot Build Rating . | . . . . . . . . . . . Part Schematics Acquired . | . . . . . . . . . . . Parts Built . | . . . . . . . . . . . Authchips . | . . . . . . . . . . . Time 69 | . . . . . . . . . . 69 Total Part Build Rating . | . . . . . . . . . . . Part Studies Acquired 4 | . . . . . 4 . . . . . Parts Repaired . | . . . . . . . . . . . Time . | . . . . . . . . . . . Parts Recycled . | . . . . . . . . . . . Recycled Matter . | . . . . . . . . . . . Retrieved Matter . | . . . . . . . . . . . Retrieved Components 13 | . . . 8 . . 2 . . . 3 Parts Scanalyzed . | . . . . . . . . . . . Part Schematics Acquired . | . . . . . . . . . . . Parts Damaged . | . . . . . . . . . . . Bothacking | -11 -10 -10 -7 -7 -5 -5 -5 -5 -5 -4 ------------ Run | Yrd Mat Sub Rec Scr Fac Ext Cet Arc Hub Fac Used RIF Installer . | . . . . . . . . . . . Robots Hacked . | . . . . . . . . . . . Non-combat . | . . . . . . . . . . . Combat . | . . . . . . . . . . . Robot Hacks Applied . | . . . . . . . . . . . Relay Couplers Released . | . . . . . . . . . . . Fabnet Peak Effective % . | . . . . . . . . . . . Robots Rewired 10 | . . . . . . 10 . . . . Allies Hacked . | . . . . . . . . . . . Hacks Repelled . | . . . . . . . . . . . Allies | -11 -10 -10 -7 -7 -5 -5 -5 -5 -5 -4 -------- Run | Yrd Mat Sub Rec Scr Fac Ext Cet Arc Hub Fac Total Allies 17 | . . . . . 2 15 . . . . Largest Group 7 | . . . . . 2 7 3 1 . . Highest-Rated Group 217 | . . . . . 98 217 95 39 . . Highest-Rated Ally 49 | . . . . . 49 39 39 39 . . Total Orders . | . . . . . . . . . . . Ally Attacks 165 | . . . . . . 138 19 8 . . Total Damage 2682 | . . . . . . 2315 228 139 . . Kills 29 | . . . . . . 24 3 2 . . Allies Corrupted . | . . . . . . . . . . . Allies Melted . | . . . . . . . . . . . Intel | -11 -10 -10 -7 -7 -5 -5 -5 -5 -5 -4 ------- Run | Yrd Mat Sub Rec Scr Fac Ext Cet Arc Hub Fac Active Infowar (turns) 1500 | . . 240 . . 663 2 . . 66 529 Optics 240 | . . 240 . . . . . . . . Structural 1171 | . . . . . 576 . . . 66 529 Jamming 16 | . . . . . . . . . . 16 ECM 90 | . . . . . 88 2 . . . . Robot Analysis Total 6 | . . . . 6 . . . . . . Derelict Logs Recovered 3 | . . 1 . 2 . . . . . . Drone Launches . | . . . . . . . . . . . Drone Recoveries . | . . . . . . . . . . . Exploration | -11 -10 -10 -7 -7 -5 -5 -5 -5 -5 -4 ------------- Run | Yrd Mat Sub Rec Scr Fac Ext Cet Arc Hub Fac Turns Passed 9233 | 124 91 1836 760 1849 1430 1754 202 184 473 530 Spaces Moved 5883 | 58 60 1334 632 1741 699 844 91 61 163 200 Core 149 | 7 . . . 142 . . . . . . Treads 1892 | 51 37 . . . 445 844 91 61 163 200 Legs . | . . . . . . . . . . . Wheels 3842 | . 23 1334 632 1599 254 . . . . . Hover . | . . . . . . . . . . . Flight . | . . . . . . . . . . . Fastest Speed 50 | 50 95 95 110 50 120 160 166 166 165 158 Average Speed 128 | 150 135 123 110 100 149 162 168 166 165 189 Slowest Speed 250 | 160 160 155 110 130 160 170 250 166 166 245 Overloaded Moves . | . . . . . . . . . . . Propulsion Burnouts . | . . . . . . . . . . . Robots Hopped 1 | . 1 . . . . . . . . . Potential Cave-ins 4 | . . . . . 4 . . . . . Cave-ins Triggered 1 | . . . . . 1 . . . . . Exploration Rate (%) 46 | 5 19 90 73 75 19 80 48 65 32 10 Regions Visited 10 Branch Regions 7 Pre-discovered Areas 15 | . . 1 6 7 . 1 . . . . Known Exits Taken 2 | . . . . . 1 . . . 1 . Unknown Exits Taken 8 | 1 1 1 1 1 . 1 1 1 . . Scrap Searched 9 | . . 3 . 6 . . . . . . Spaces Dug 38 | . . . . . 29 1 . . 8 . Terrain Destroyed 370 | . . 33 2 . 79 21 1 9 188 37 Melee 37 | . . . . . 29 . . . 8 . Projectile 75 | . . . 2 . 2 21 1 9 21 19 AOE 258 | . . 33 . . 48 . . . 159 18 Terrain Rammed . | . . . . . . . . . . . Walls Destroyed . | . . . . . . . . . . . Machines Disabled . | . . . . . . . . . . . Actions | -11 -10 -10 -7 -7 -5 -5 -5 -5 -5 -4 --------- Run | Yrd Mat Sub Rec Scr Fac Ext Cet Arc Hub Fac Total 6927 | 76 66 1464 677 1885 950 1064 117 95 270 263 Wait 201 | . 4 74 1 . 39 30 . 6 34 13 Move 5870 | 57 57 1333 631 1740 697 843 90 60 162 200 Hop 1 | . 1 . . . . . . . . . Pick Up 172 | 5 2 9 27 63 41 10 2 2 5 6 Fast Attach 37 | 6 . 1 . 3 14 9 1 . 1 2 Attach 34 | . . 1 1 4 19 4 . . 1 4 Detach 18 | . . . . 8 7 1 2 . . . Swap 67 | . 1 9 . . 15 17 5 2 15 3 Drop 125 | . . 3 3 67 22 13 6 3 8 . Fire 269 | 8 1 34 14 . 37 73 11 22 35 34 Melee 69 | . . . . . 58 1 . . 9 1 Ram . | . . . . . . . . . . . Kick . | . . . . . . . . . . . Crush . | . . . . . . . . . . . Escape Stasis 1 | . . . . . 1 . . . . . Rewire 63 | . . . . . . 63 . . . . Trap . | . . . . . . . . . . . Miscellaneous . | . . . . . . . . . . . Route ------- -11/Scrapyard -10/Materials (discovered 3 exits: [*Min x2] / *Sub) -10/Subcaves (discovered 4 exits: [*Mat x2] / *Rec / *Scr) -7/Recycling -7/Scraptown (discovered 2 exits: *Fac x2) -5/Factory (discovered 8 exits: Fac x4 / *Upp x2 / *Ext x2) -5/Extension (discovered 3 exits: *Fac x2 / *Cet) -5/Cetus -5/Archives -5/Hub_04(d) (discovered 4 exits: *Fac x4) -4/Factory History --------- Turn | Location | Event 12 | -11/Scrapyard | Discovered new exit (range 13) 125 | -11/Scrapyard | Entered Materials 126 | -10/Materials | Met a group of wandering Federalists 141 | -10/Materials | Discovered new exit (range 9) 196 | -10/Materials | Discovered new exit (range 16) 201 | -10/Materials | Discovered new exit (range 13) 216 | -10/Materials | Entered Subcaves 216 | -10/Subcaves | Accompanied by 1 ally 217 | -10/Subcaves | Continued accompanying wandering Federalists (4) 265 | -10/Subcaves | Learned location of Zion (-7) 265 | -10/Subcaves | Met a Zionite searching for "candidates" 306 | -10/Subcaves | Build established: Mutant 465 | -10/Subcaves | Lost 3 allies 477 | -10/Subcaves | Discovered new exit (range 8) 709 | -10/Subcaves | Core integrity fell below 50% 820 | -10/Subcaves | Shifting Twisted Machinery released Sub. Optics 836 | -10/Subcaves | Shifting Twisted Machinery released Piercing Trap 920 | -10/Subcaves | Learned Materials terminal intel 929 | -10/Subcaves | Disturbed a concealed Subdweller 1019 | -10/Subcaves | Discovered new exit (range 10) 1045 | -10/Subcaves | Visited Clippyterm 1049 | -10/Subcaves | Learned Factory fabricator intel 1271 | -10/Subcaves | Shifting Twisted Machinery released Sub. Machine Gun 1272 | -10/Subcaves | Shifting Twisted Machinery released Battle Cannon 1597 | -10/Subcaves | Shifting Twisted Machinery released Mak. Shrapnel Gun 1601 | -10/Subcaves | Shifting Twisted Machinery released Slug Cannon 1842 | -10/Subcaves | Visited 4L-MR0's lab 1862 | -10/Subcaves | Found Meta Core 2035 | -10/Subcaves | Discovered new exit (range 12) 2048 | -10/Subcaves | Core integrity fell below 20% 2052 | -10/Subcaves | Entered Recycling 2382 | -7/Recycling | Scanned before Scraplab entrance 2801 | -7/Recycling | Entered Scraplab 2810 | -7/Recycling | Discovered new exit (range 3) 2812 | -7/Recycling | Entered Scraptown 2908 | -7/Scraptown | Scanned Subdweller tech in exchange for log data 2954 | -7/Scraptown | Visited IN-MT5's Study 3007 | -7/Scraptown | Visited UFD Registry 3007 | -7/Scraptown | Registered with UFD as "Matterlauncher" 3020 | -7/Scraptown | Visited SPCMW 3030 | -7/Scraptown | Visited Comm Corps 3178 | -7/Scraptown | Visited Science Guys 3238 | -7/Scraptown | Visited Observation Area 3266 | -7/Scraptown | Visited Science Testing Area 3293 | -7/Scraptown | Visited Cartography Club 3312 | -7/Scraptown | Found Surveybot 17 Chip 3329 | -7/Scraptown | Learned location of Lower Caves (-7) 3329 | -7/Scraptown | Learned location of Testing (-3) 3329 | -7/Scraptown | Learned 16 Materials zone layouts 3329 | -7/Scraptown | Learned 20 Factory zone layouts 3329 | -7/Scraptown | Learned 24 Factory zone layouts 3329 | -7/Scraptown | Learned 16 Research zone layouts 3329 | -7/Scraptown | Learned 4 Storage zone layouts 3329 | -7/Scraptown | Learned 4 Recycling zone layouts 3329 | -7/Scraptown | Learned 24 Upper Caves zone layouts 3329 | -7/Scraptown | Learned 8 Proximity Caves zone layouts 3329 | -7/Scraptown | Learned 16 Proximity Caves zone layouts 3329 | -7/Scraptown | Learned 4 Armory zone layouts 3329 | -7/Scraptown | Learned location of 1 exit from Factory 3329 | -7/Scraptown | Learned location of 3 exits from Lower Caves 3343 | -7/Scraptown | Found Deep Structural Scanner 3364 | -7/Scraptown | Visited Derelict Rescue Squad 3370 | -7/Scraptown | Found DRS Beacon 3387 | -7/Scraptown | Visited Analyses Database 3489 | -7/Scraptown | Visited Curators Association 3516 | -7/Scraptown | Visited Botcube Research 3520 | -7/Scraptown | Found Botcube 3537 | -7/Scraptown | Visited DA-N13 Charitable Foundation 3552 | -7/Scraptown | Found DCF Scrap (27 items) 3818 | -7/Scraptown | Discovered new exit (range 5) 4583 | -7/Scraptown | Met Optimus 4583 | -7/Scraptown | Accepted into 0bPrime 4657 | -7/Scraptown | Discovered new exit (range 3) 4661 | -7/Scraptown | Entered Factory 4661 | -5/Factory | Evolved 10 slots: Power x1, Propulsion x2, Utility x6, Weapon x1 4662 | -5/Factory | Identified exit to Extension 4663 | -5/Factory | Identified exit to Factory 4664 | -5/Factory | Identified exit to Upper Caves 4665 | -5/Factory | Loaded intel: 6 fabricator locations 4690 | -5/Factory | Attached Meta Core, gained temporary slots: Propulsion, Utility, Weapon 4771 | -5/Factory | Build established: Derelict-Mutant 4987 | -5/Factory | Discovered exit to Extension (range 15) 5328 | -5/Factory | Lost 3 parts (1n1u1w) 5475 | -5/Factory | Loaded intel: 8 recycling unit locations 5895 | -5/Factory | Build established: Scavenger-Tank 5945 | -5/Factory | Crushed by falling debris 6019 | -5/Factory | System corruption reached 10% 6091 | -5/Factory | Entered Extension 6128 | -5/Extension | Rescued a captive Derelict 6130 | -5/Extension | Rescued a captive Derelict 6224 | -5/Extension | Loaded intel: 2 recycling unit locations 6224 | -5/Extension | Learned location of Protoforge (-2) 6296 | -5/Extension | Rescued a captive Derelict 6297 | -5/Extension | Rescued a captive Derelict 6391 | -5/Extension | Energy Cycler disabled 6392 | -5/Extension | Rescued a captive Derelict 6393 | -5/Extension | Rescued a captive Derelict 6393 | -5/Extension | Rescued a captive Derelict 6394 | -5/Extension | Rescued a captive Derelict 6395 | -5/Extension | Rescued a captive Derelict 6476 | -5/Extension | Lost 7 allies 7026 | -5/Extension | Spotted B-75 Beast 7040 | -5/Extension | Destroyed B-75 Beast 7098 | -5/Extension | Spotted B-75 Beast 7125 | -5/Extension | Destroyed B-75 Beast 7143 | -5/Extension | Discovered exit to Factory (range 15) 7200 | -5/Extension | Extracted ID and sensor layout for unrecognized location from A7's data core 7815 | -5/Extension | Discovered exit to Factory (range 10) 7817 | -5/Extension | Discovered new exit (range 6) 7845 | -5/Extension | Entered Cetus 7845 | -5/Cetus | Accompanied by 3 allies 7869 | -5/Cetus | Spotted Cetus Guard 7869 | -5/Cetus | Spotted Cetus Guard 7872 | -5/Cetus | Spotted Cetus Guard 7874 | -5/Cetus | Spotted Cetus Guard 7878 | -5/Cetus | Allies destroyed Cetus Guard 7880 | -5/Cetus | Allies destroyed Cetus Guard 7889 | -5/Cetus | Destroyed Cetus Guard 7890 | -5/Cetus | Allies destroyed Cetus Guard 8022 | -5/Cetus | Discovered new exit (range 15) 8047 | -5/Cetus | Entered Archives 8047 | -5/Archives | Accompanied by 1 ally 8164 | -5/Archives | Discovered new exit (range 16) 8231 | -5/Archives | Entered Hub_04(d) 8277 | -5/Hub_04(d) | Garrison activated, responded to threat 8637 | -5/Hub_04(d) | Network Hub disabled 8704 | -5/Hub_04(d) | Entered Factory 8704 | -4/Factory | Evolved 2 slots: Utility x1, Weapon x1 8881 | -4/Factory | Garrison activated, responded to threat 9127 | -4/Factory | Allied Derelicts emerged from ambush trap array 9145 | -4/Factory | Loaded intel: 8 recycling unit locations 9234 | -4/Factory | Self-destructed Last Messages --------------- 09230_ Slug penetrates Wall. 09230_ Critical hit (Destroy). 09230_ Penetrated by Slug. 09230_ Adv. Melee Analysis Suite destroyed. 09230_ Penetrated by Slug. 09230_ Slug penetrates Wall. 09230_ K-01 Serf collects debris. 09231_ Slug penetrates H-77 Assassin. 09231_ H-77 Assassin destroyed. 09231_ Slug penetrates G-67 Veteran. 09231_ Switching to secondary target: G-67 Veteran. 09231_ Slug penetrates G-67 Veteran. 09231_ R-10 Processor collects Adv. Heat Sink. 09231_ Imp. Heavy Armor Plating destroyed. 09232_ K-01 Serf collects debris. 09233_ Power failure, Quantum Reactor shutdown. 09233_ K-01 Serf collects debris. 09233_ Penetrated by Slug. 09233_ U-05 Engineer builds a Door. 09234_ Quantum Reactor destroyed. Map ----- +----------------------------------------------------+ | ????????????????????????????????????????"Y"??????? | | ????????????""???????????????????????????????????? | | ????????????""???????????????????????????????????? | | ????????????Y"???????????????????????????????????? | | ????????????""???????????????????????????????????? | | ????????????""???????????????????????????????????? | | ?????????????????????????????????????????????????? | | ?????????????????????????????????????????????????? | | ?????????????????????????????????????????????????? | | ?????????????????????????????????????????????????? | | ?????????????????????????????????????????????????? | | ?????????????????????????????????????????????????? | | ?????????????????????????????????????????????????? | | ?????????????????????????????? """" ????????????? | | ?????????????????????????????? ????????????? | | ?????????????????????????????? ! ????????????? | | ?????????????????????????????? ####????????????? | | ????????????????????????????? # ????????????? | | ????????????????? # # ""????????????? | | ????????????????? # # ""????????????? | | ?????????????????########### # ""????????????? | | ?????????????????########### # ????????????? | | ?????????????????#### # ""????????????? | | ?????????????????#### # ""????????????? | | ???????????? ??? # k + ""????????????? | | ???????????? ?? # @ # ????????????? | | ???????? ?? ? # # ????????????? | | ???#### ? ! # * ###+##+####????????????? | | ???#### ? # !%= # #????????????? | | ???#### # gg # """" #????????????? | | ???#### # # """ #????????????? | | ??? + #g # """"????????????????? | | ???#### gu # """" ???????????????? | | ???#### # R # ????????????????? | | ??? ## # % # """ / ?????????? | | ??? ############+### k%# """" ####?????????? | | ??? ######### # k!# """" ####?????????? | | ??? ######### """ # [=k# """" ## ?????????? | | ???? ######### """ # h%!*+ ## ?????????? | | ??????????#### """ #R !%=# ## ?????????? | | ??????????#### #* %!=# ## ?????????? | | ?????????? # """ #% # [ ## ?????????? | | ?????????? # """ # # [ ## ?????????? | | ?????????? # """ # # ## ?????????? | | ?????????? # # ############ ?????????? | | ?????????? #] """ # ############ ?????????? | | #### ""T"" # """ / ##############?????????? | | #### """"" #! """ # # #?????????? | | #### # # # """""""???????????? | | ########+############ # == """"""" # ??????? | +----------------------------------------------------+ Best States ------------- Heat Dissipation 74 Energy Generation 45 Energy Capacity 770 Matter Stores 300 Matter Capacity 300 Sight Range 21 Terrain Scan Density 1210 ECM Strength 2 Jamming Range 14 Armor Coverage 1650 Weapon Shielding 66 Weapon Cycling 15 Melee Speed Boost 20 Phase Shifting 5 Evasion (%) 50 Targeting Accuracy 5 Melee Accuracy 8 Recoil Reduction 4 Matter Filtering 30 Kinecelleration 40 Offensive Hacking 12 Item Schematics ----------------- None Robot Schematics ------------------ None Fabricated ------------ Nothing Repaired ---------- Nothing Studied --------- Arm. Huge Wheel | -5/Factory | Hacked Med. Treads | -5/Factory | Hacked Hvy. Rocket Launcher | -5/Factory | Hacked Imp. Deuterium Engine | -5/Factory | Hacked Alien Tech Used ----------------- None Achievements -------------- None Challenges ------------ None Game ------ Seed ResetStorageMediator Manual? 0 Play Time 01:21:47 Cumulative 309.4 hours Start 2025.12.04 @ 00:18:31 End 2025.12.18 @ 17:33:59 Sessions 5 Manual Loads 0 Difficulty Rogue Special Mode None Game No. 379 Rogue 379 Adventurer 0 Explorer 0 Win Type - Total 21 Types 13/0/3/1/1/0/1/1/0/1 Lore% 78 Gallery% 77 Achievement% 62 Wizard Run 0 Options --------- Layout 1 ASCII 0 Keyboard 1 Movement Numpad Keybinds 0 Fullscreen 2 Font 32/SmallcapsGlow Map View 77x35 Zoom Use 0% Tactical HUD 1 Map Filters NONE Filters NONE Steam 1 RUN: b5170ec2-8bce-43dc-99fc-50e24ec8f9f5